Workbook

Sheet TAB. 1 tassi di abbandono
B1: Tab.1 - Immatricolati all'a.a. 2010-11, di cui iscritti all'a.a. 2011-12 allo stesso corso di studi, ad altro corso di studi delle stessa Facoltà, ad altro corso di studi di altra Facoltà e relativi tassi di abbandono, per Facoltà e corso di studi
B2: Tipo CDS | C2: Normativa di riferimento | D2: CORSO DI STUDIO | E2: Immatricolati nell'a.a. 2010-11 (*) | F2: di cui Iscritti al 2° anno nell'a.a. 2011-12 allo stesso CDS | G2: di cui Iscritti nell'a.a. 2011-12 ad altro CDS della stessa Facoltà | H2: di cui Iscritti nell'a.a. 2011-12 ad altra Facoltà | I2: Mancate iscrizioni allo stesso CDS | J2: Mancate iscrizioni alla stessa Facoltà | K2: Mancate iscrizioni all'Ateneo | L2: Tasso di abbandono del CDS tra 1° e 2° anno (%) | M2: Tasso di abbandono della Facoltà tra 1° e 2° anno (%) | N2: Tasso di abbandono dell'Ateneo tra 1° e 2° anno (%)
B3: AGRARIA
B4: Triennale | C4: D.M. 270/04 | D4: BENI ENOGASTRONOMICI (D.M.270/04) | E4: 76 | F4: 37 | G4: 1 | H4: 0 | I4: =E4-F4 -> 39 | J4: =I4-G4 -> 38 | K4: =J4-H4 -> 38 | L4: =I4/$E4*100 -> 51.31578947 | M4: =J4/$E4*100 -> 50 | N4: =K4/$E4*100 -> 50
B5: Triennale | C5: D.M. 270/04 | D5: SCIENZE E TECNOLOGIE AGRARIE (D.M.270/04) | E5: 119 | F5: 73 | G5: 1 | H5: 2 | I5: =E5-F5 -> 46 | J5: =I5-G5 -> 45 | K5: 43 | L5: =I5/$E5*100 -> 38.65546218 | M5: 37.81512605 | N5: 36.13445378
B6: Triennale | C6: D.M. 270/04 | D6: SCIENZE E TECNOLOGIE ALIMENTARI (D.M.270/04) | E6: 239 | F6: 113 | G6: 0 | H6: 18 | I6: 126 | J6: 126 | K6: 108 | L6: 52.71966527 | M6: 52.71966527 | N6: 45.18828452
B7: Triennale | C7: D.M. 270/04 | D7: SCIENZE FORESTALI E AMBIENTALI (D.M.270/04) | E7: 54 | F7: 30 | G7: 2 | H7: 0 | I7: 24 | J7: 22 | K7: 22 | L7: 44.44444444 | M7: 40.74074074 | N7: 40.74074074
D8: TOTALE AGRARIA | E8: =SUM(E4:E7) -> 488 | F8: =SUM(F4:F7) -> 253 | G8: 4 | H8: 20 | I8: 235 | J8: 231 | K8: 211 | L8: 48.1557377 | M8: 47.33606557 | N8: 43.23770492
B10: ECONOMIA
B11: Triennale | C11: D.M. 270/04 | D11: ECONOMIA AZIENDALE (D.M.270/04) | E11: =458+3 -> 461 | F11: 288 | G11: 7 | H11: 3 | I11: =E11-F11 -> 173 | J11: =I11-G11 -> 166 | K11: 163 | L11: =I11/$E11*100 -> 37.52711497 | M11: 36.00867679 | N11: 35.35791757
B12: Triennale | C12: D.M. 270/04 | D12: ECONOMIA AZIENDALE (D.M.270/04) (BRINDISI) | E12: 113 | F12: 53 | G12: 3 | H12: 0 | I12: 60 | J12: 57 | K12: 57 | L12: 53.09734513 | M12: 50.44247788 | N12: 50.44247788
B13: Triennale | C13: D.M. 270/04 | D13: ECONOMIA E COMMERCIO (D.M.270/04) | E13: 551 | F13: 372 | G13: 2 | H13: 1 | I13: 179 | J13: 177 | K13: 176 | L13: 32.48638838 | M13: 32.12341198 | N13: 31.94192377
B14: Triennale | C14: D.M. 270/04 | D14: MARKETING E COMUNICAZIONE D'AZIENDA (D.M.270/04) | E14: 347 | F14: 209 | G14: 2 | H14: 3 | I14: 138 | J14: 136 | K14: 133 | L14: 39.76945245 | M14: 39.19308357 | N14: 38.32853026
B15: Triennale | C15: D.M. 270/04 | D15: SCIENZE STATISTICHE (D.M.270/04) | E15: 17 | F15: 9 | G15: 0 | H15: 0 | I15: 8 | J15: 8 | K15: 8 | L15: 47.05882353 | M15: 47.05882353 | N15: 47.05882353
D16: TOTALE ECONOMIA | E16: =SUM(E11:E15) -> 1489 | F16: =SUM(F11:F15) -> 931 | G16: 14 | H16: 7 | I16: 558 | J16: 544 | K16: 537 | L16: 37.47481531 | M16: 36.53458697 | N16: 36.0644728
B18: FARMACIA
B19: Triennale | C19: D.M. 270/04 | D19: TECNICHE ERBORISTICHE (D.M.270/04) | E19: 105 | F19: 46 | G19: 3 | H19: 2 | I19: =E19-F19 -> 59 | J19: =I19-G19 -> 56 | K19: 54 | L19: =I19/$E19*100 -> 56.19047619 | M19: 53.33333333 | N19: 51.42857143
B20: Magistrale a ciclo unico | C20: D.M. 270/04 | D20: CHIMICA E TECNOLOGIA FARMACEUTICHE (D.M.270/04) | E20: 100 | F20: 60 | G20: 1 | H20: 24 | I20: 40 | J20: 39 | K20: 15 | L20: 40 | M20: 39 | N20: 15
B21: Magistrale a ciclo unico | C21: D.M. 270/04 | D21: FARMACIA (D.M.270/04) | E21: 321 | F21: 229 | G21: 0 | H21: 32 | I21: 92 | J21: 92 | K21: 60 | L21: 28.66043614 | M21: 28.66043614 | N21: 18.69158879
D22: TOTALE FARMACIA | E22: =SUM(E19:E21) -> 526 | F22: =SUM(F19:F21) -> 335 | G22: 4 | H22: 58 | I22: 191 | J22: 187 | K22: 129 | L22: 36.31178707 | M22: 35.5513308 | N22: 24.52471483
B24: GIURISPRUDENZA
B25: Triennale | C25: D.M. 270/04 | D25: SCIENZE DEI SERVIZI GIURIDICI (D.M.270/04) | E25: 151 | F25: 69 | G25: 1 | H25: 1 | I25: =E25-F25 -> 82 | J25: =I25-G25 -> 81 | K25: 80 | L25: =I25/$E25*100 -> 54.30463576 | M25: 53.64238411 | N25: 52.98013245
B26: Triennale | C26: D.M. 270/04 | D26: SCIENZE DEI SERVIZI GIURIDICI D'IMPRESA (D.M.270/04) | E26: 80 | F26: 37 | G26: 1 | H26: 0 | I26: 43 | J26: 42 | K26: 42 | L26: 53.75 | M26: 52.5 | N26: 52.5
B27: Magistrale a ciclo unico | C27: D.M. 270/04 | D27: GIURISPRUDENZA | E27: 1107 | F27: 803 | G27: 5 | H27: 13 | I27: 304 | J27: 299 | K27: 286 | L27: 27.46160795 | M27: 27.00993677 | N27: 25.83559169
B28: Magistrale a ciclo unico | C28: D.M. 270/04 | D28: GIURISPRUDENZA (già Giurisprudenza d'impresa) | E28: 128 | F28: 87 | G28: 2 | H28: 2 | I28: 41 | J28: 39 | K28: 37 | L28: 32.03125 | M28: 30.46875 | N28: 28.90625
D29: TOTALE GIURISPRUDENZA | E29: =SUM(E25:E28) -> 1466 | F29: =SUM(F25:F28) -> 996 | G29: 9 | H29: 16 | I29: 470 | J29: 461 | K29: 445 | L29: 32.06002729 | M29: 31.44611187 | N29: 30.35470668
B31: LETTERE E FILOSOFIA
B32: Triennale | C32: D.M. 270/04 | D32: FILOSOFIA (D.M.270/04) | E32: 101 | F32: 67 | G32: 2 | H32: 1 | I32: =E32-F32 -> 34 | J32: =I32-G32 -> 32 | K32: 31 | L32: =I32/$E32*100 -> 33.66336634 | M32: 31.68316832 | N32: 30.69306931
B33: Triennale | C33: D.M. 270/04 | D33: LETTERE (D.M.270/04) | E33: 344 | F33: 252 | G33: 0 | H33: 4 | I33: 92 | J33: 92 | K33: 88 | L33: 26.74418605 | M33: 26.74418605 | N33: 25.58139535
B34: Triennale | C34: D.M. 270/04 | D34: SCIENZE DEI BENI CULTURALI (D.M.270/04) | E34: 138 | F34: 83 | G34: 0 | H34: 0 | I34: 55 | J34: 55 | K34: 55 | L34: 39.85507246 | M34: 39.85507246 | N34: 39.85507246
B35: Triennale | C35: D.M. 270/04 | D35: SCIENZE DEI BENI CULTURALI PER IL TURISMO (D.M. 270/04) | E35: 46 | F35: 24 | G35: 0 | H35: 0 | I35: 22 | J35: 22 | K35: 22 | L35: 47.82608696 | M35: 47.82608696 | N35: 47.82608696
B36: Triennale | C36: D.M. 270/04 | D36: STORIA E SCIENZE SOCIALI (D.M.270/04) | E36: 53 | F36: 27 | G36: 0 | H36: 2 | I36: 26 | J36: 26 | K36: 24 | L36: 49.05660377 | M36: 49.05660377 | N36: 45.28301887
D37: TOTALE LETTERE E FILOSOFIA | E37: =SUM(E32:E36) -> 682 | F37: =SUM(F32:F36) -> 453 | G37: 2 | H37: 7 | I37: 229 | J37: 227 | K37: 220 | L37: 33.57771261 | M37: 33.28445748 | N37: 32.25806452
B39: LINGUE E LETTERATURE STRANIERE
B40: Triennale | C40: D.M. 270/04 | D40: COMUNICAZIONE LINGUISTICA E INTERCULTURALE (D.M.270/04) | E40: 389 | F40: 288 | G40: 1 | H40: 1 | I40: =E40-F40 -> 101 | J40: =I40-G40 -> 100 | K40: 99 | L40: =I40/$E40*100 -> 25.96401028 | M40: 25.70694087 | N40: 25.44987147
B41: Triennale | C41: D.M. 270/04 | D41: CULTURE DELLE LINGUE MODERNE E DEL TURISMO (D.M.270/04) | E41: 496 | F41: 327 | G41: 0 | H41: 8 | I41: 169 | J41: 169 | K41: 161 | L41: 34.07258065 | M41: 34.07258065 | N41: 32.45967742
D42: TOTALE LINGUE E LETTERATURE STRANIERE | E42: =SUM(E40:E41) -> 885 | F42: =SUM(F40:F41) -> 615 | G42: 1 | H42: 9 | I42: 270 | J42: 269 | K42: 260 | L42: 30.50847458 | M42: 30.39548023 | N42: 29.37853107
B44: MEDICINA E CHIRURGIA
B45: Triennale | C45: D.M. 509/99 | D45: ASSISTENZA SANITARIA | E45: 20 | F45: 15 | G45: 0 | H45: 0 | I45: =E45-F45 -> 5 | J45: =I45-G45 -> 5 | K45: 5 | L45: =I45/$E45*100 -> 25 | M45: 25 | N45: 25
B46: Triennale | C46: D.M. 509/99 | D46: DIETISTICA | E46: 17 | F46: 14 | G46: 0 | H46: 0 | I46: 3 | J46: 3 | K46: 3 | L46: 17.64705882 | M46: 17.64705882 | N46: 17.64705882
B47: Triennale | C47: D.M. 509/99 | D47: EDUCAZIONE PROFESSIONALE | E47: 38 | F47: 27 | G47: 1 | H47: 0 | I47: 11 | J47: 10 | K47: 10 | L47: 28.94736842 | M47: 26.31578947 | N47: 26.31578947
B48: Triennale | C48: D.M. 509/99 | D48: FISIOTERAPIA | E48: 115 | F48: 101 | G48: 1 | H48: 0 | I48: 14 | J48: 13 | K48: 13 | L48: 12.17391304 | M48: 11.30434783 | N48: 11.30434783
B49: Triennale | C49: D.M. 509/99 | D49: IGIENE DENTALE | E49: 24 | F49: 22 | G49: 1 | H49: 0 | I49: 2 | J49: 1 | K49: 1 | L49: 8.333333333 | M49: 4.166666667 | N49: 4.166666667
B50: Triennale | C50: D.M. 509/99 | D50: INFERMIERISTICA | E50: 565 | F50: 509 | G50: 3 | H50: 1 | I50: 56 | J50: 53 | K50: 52 | L50: 9.911504425 | M50: 9.380530973 | N50: 9.203539823
B51: Triennale | C51: D.M. 509/99 | D51: LOGOPEDIA | E51: 17 | F51: 15 | G51: 0 | H51: 0 | I51: 2 | J51: 2 | K51: 2 | L51: 11.76470588 | M51: 11.76470588 | N51: 11.76470588
B52: Triennale | C52: D.M. 509/99 | D52: ORTOTTICA ED ASSISTENZA OFTALMOLOGICA | E52: 10 | F52: 8 | G52: 0 | H52: 0 | I52: 2 | J52: 2 | K52: 2 | L52: 20 | M52: 20 | N52: 20
B53: Triennale | C53: D.M. 509/99 | D53: OSTETRICIA | E53: 22 | F53: 22 | G53: 0 | H53: 0 | I53: 0 | J53: 0 | K53: 0 | L53: 0 | M53: 0 | N53: 0
B54: Triennale | C54: D.M. 509/99 | D54: TECNICHE AUDIOMETRICHE | E54: 19 | F54: 15 | G54: 2 | H54: 0 | I54: 4 | J54: 2 | K54: 2 | L54: 21.05263158 | M54: 10.52631579 | N54: 10.52631579
B55: Triennale | C55: D.M. 509/99 | D55: TECNICHE AUDIOPROTESICHE | E55: 20 | F55: 19 | G55: 0 | H55: 0 | I55: 1 | J55: 1 | K55: 1 | L55: 5 | M55: 5 | N55: 5
B56: Triennale | C56: D.M. 509/99 | D56: TECNICHE DELLA PREV.NELL'AMBIENTE E NEI LUOGHI DI LAVORO | E56: 63 | F56: 55 | G56: 2 | H56: 0 | I56: 8 | J56: 6 | K56: 6 | L56: 12.6984127 | M56: 9.523809524 | N56: 9.523809524
B57: Triennale | C57: D.M. 509/99 | D57: TECNICHE DELLA RIABILITAZIONE PSICHIATRICA | E57: 39 | F57: 37 | G57: 0 | H57: 0 | I57: 2 | J57: 2 | K57: 2 | L57: 5.128205128 | M57: 5.128205128 | N57: 5.128205128
B58: Triennale | C58: D.M. 509/99 | D58: TECNICHE DI FISIOPATOL.CARDIOCIRCOL.E PERFUSIONE CARDIOVASCOLARE | E58: 15 | F58: 12 | G58: 0 | H58: 0 | I58: 3 | J58: 3 | K58: 3 | L58: 20 | M58: 20 | N58: 20
B59: Triennale | C59: D.M. 509/99 | D59: TECNICHE DI LABORATORIO BIOMEDICO | E59: 24 | F59: 18 | G59: 0 | H59: 0 | I59: 6 | J59: 6 | K59: 6 | L59: 25 | M59: 25 | N59: 25
B60: Triennale | C60: D.M. 509/99 | D60: TECNICHE DI NEUROFISIOPATOLOGIA | E60: 10 | F60: 9 | G60: 0 | H60: 0 | I60: 1 | J60: 1 | K60: 1 | L60: 10 | M60: 10 | N60: 10
B61: Triennale | C61: D.M. 509/99 | D61: TECNICHE DI RADIOLOGIA MEDICA,PER IMMAGINI E RADIOTERAPIA | E61: 28 | F61: 25 | G61: 1 | H61: 0 | I61: 3 | J61: =I61-G61 -> 2 | K61: 2 | L61: 10.71428571 | M61: 7.142857143 | N61: 7.142857143
B62: Triennale | C62: D.M. 270/04 | D62: SCIENZE DELLE ATTIVITA' MOTORIE E SPORTIVE (D.M.270/04) | E62: 46 | F62: 31 | G62: 0 | H62: 0 | I62: 15 | J62: 15 | K62: 15 | L62: 32.60869565 | M62: 32.60869565 | N62: 32.60869565
B63: Magistrale a ciclo unico | C63: D.M. 270/04 | D63: MEDICINA E CHIRURGIA (D.M.270/04) | E63: 305 | F63: 284 | G63: 2 | H63: 0 | I63: 21 | J63: 19 | K63: 19 | L63: 6.885245902 | M63: 6.229508197 | N63: 6.229508197
B64: Magistrale a ciclo unico | C64: D.M. 270/04 | D64: ODONTOIATRIA E PROTESI DENTARIA (D.M.270/04) | E64: 21 | F64: 18 | G64: 3 | H64: 0 | I64: 3 | J64: 0 | K64: 0 | L64: 14.28571429 | M64: 0 | N64: 0
D65: TOTALE MEDICINA E CHIRURGIA | E65: =SUM(E45:E64) -> 1418 | F65: 1256 | G65: 16 | H65: 1 | I65: 162 | J65: 146 | K65: 145 | L65: 11.42454161 | M65: 10.29619182 | N65: 10.22566996
B67: MEDICINA VETERINARIA
B68: Triennale | C68: D.M. 270/04 | D68: SCIENZE ANIMALI E PRODUZIONI ALIMENTARI (D.M.270/04) | E68: 108 | F68: 67 | G68: 6 | H68: 2 | I68: =E68-F68 -> 41 | J68: =I68-G68 -> 35 | K68: 33 | L68: =I68/$E68*100 -> 37.96296296 | M68: 32.40740741 | N68: 30.55555556
B69: Magistrale a ciclo unico | C69: D.M. 270/04 | D69: MEDICINA VETERINARIA (D.M.270/04) | E69: 81 | F69: 64 | G69: 0 | H69: 5 | I69: 17 | J69: 17 | K69: 12 | L69: 20.98765432 | M69: 20.98765432 | N69: 14.81481481
D70: TOTALE MEDICINA VETERINARIA | E70: =SUM(E68:E69) -> 189 | F70: =SUM(F68:F69) -> 131 | G70: 6 | H70: 7 | I70: 58 | J70: 52 | K70: 45 | L70: 30.68783069 | M70: 27.51322751 | N70: 23.80952381
B72: SCIENZE BIOTECNOLOGICHE
B73: Triennale | C73: D.M. 270/04 | D73: BIOTECNOLOGIE MEDICHE E FARMACEUTICHE (D.M.270/04) | E73: 74 | F73: 30 | G73: 5 | H73: 13 | I73: =E73-F73 -> 44 | J73: =I73-G73 -> 39 | K73: 26 | L73: =I73/$E73*100 -> 59.45945946 | M73: 52.7027027 | N73: 35.13513514
B74: Triennale | C74: D.M. 270/04 | D74: BIOTECNOLOGIE PER L'INNOVAZIONE DI PROCESSI E DI PRODOTTI (D.M.270/04) | E74: 95 | F74: 43 | G74: 24 | H74: 8 | I74: 52 | J74: 28 | K74: 20 | L74: 54.73684211 | M74: 29.47368421 | N74: 21.05263158
D75: TOTALE SCIENZE BIOTECNOLOGICHE | E75: =SUM(E73:E74) -> 169 | F75: =SUM(F73:F74) -> 73 | G75: 29 | H75: 21 | I75: 96 | J75: 67 | K75: 46 | L75: 56.80473373 | M75: 39.64497041 | N75: 27.21893491
B77: SCIENZE DELLA FORMAZIONE (manca Scienze della formazione primaria)
B78: Triennale | C78: D.M. 270/04 | D78: SCIENZE DELLA COMUNICAZIONE (D.M.270/04) | E78: 336 | F78: 191 | G78: 0 | H78: 0 | I78: =E78-F78 -> 145 | J78: =I78-G78 -> 145 | K78: 145 | L78: =I78/$E78*100 -> 43.1547619 | M78: 43.1547619 | N78: 43.1547619
B79: Triennale | C79: D.M. 270/04 | D79: SCIENZE DELLA COMUNICAZIONE NELLE ORGANIZZAZIONI (D.M.270/04) - TARANTO | E79: 79 | F79: 37 | G79: 1 | H79: 1 | I79: 42 | J79: 41 | K79: 40 | L79: 53.16455696 | M79: 51.89873418 | N79: 50.63291139
B80: Triennale | C80: D.M. 270/04 | D80: SCIENZE DELLA FORMAZIONE (D.M.270/04) | E80: 244 | F80: 126 | G80: 3 | H80: 1 | I80: 118 | J80: 115 | K80: 114 | L80: 48.36065574 | M80: 47.13114754 | N80: 46.72131148
B81: Triennale | C81: D.M. 270/04 | D81: SCIENZE DELL'EDUCAZIONE (D.M.270/04) | E81: 434 | F81: 318 | G81: 3 | H81: 1 | I81: 116 | J81: 113 | K81: 112 | L81: 26.7281106 | M81: 26.03686636 | N81: 25.80645161
B82: Triennale | C82: D.M. 270/04 | D82: SCIENZE DELL'EDUCAZIONE E DELL'ANIMAZIONE SOCIO CULTURALE (D.M.270/04) | E82: 91 | F82: 57 | G82: 0 | H82: 1 | I82: 34 | J82: 34 | K82: 33 | L82: 37.36263736 | M82: 37.36263736 | N82: 36.26373626
B83: Triennale | C83: D.M. 270/04 | D83: SCIENZE E TECNICHE PSICOLOGICHE (D.M.270/04) | E83: 243 | F83: 201 | G83: 0 | H83: 5 | I83: 42 | J83: 42 | K83: 37 | L83: 17.28395062 | M83: 17.28395062 | N83: 15.22633745
D84: TOTALE SCIENZE DELLA FORMAZIONE | E84: =SUM(E78:E83) -> 1427 | F84: =SUM(F78:F83) -> 930 | G84: 7 | H84: 9 | I84: 497 | J84: 490 | K84: 481 | L84: 34.82831114 | M84: 34.33777155 | N84: 33.70707779
B86: SCIENZE MM.FF.NN.
B87: Triennale | C87: D.M. 270/04 | D87: CHIMICA (D.M.270/04) | E87: 167 | F87: 57 | G87: 1 | H87: 5 | I87: =E87-F87 -> 110 | J87: =I87-G87 -> 109 | K87: 104 | L87: =I87/$E87*100 -> 65.86826347 | M87: 65.26946108 | N87: 62.2754491
B88: Triennale | C88: D.M. 270/04 | D88: FISICA (D.M.270/04) | E88: 72 | F88: 50 | G88: 1 | H88: 0 | I88: 22 | J88: 21 | K88: 21 | L88: 30.55555556 | M88: 29.16666667 | N88: 29.16666667
B89: Triennale | C89: D.M. 270/04 | D89: INFORMATICA (D.M.270/04) | E89: 130 | F89: 74 | G89: 1 | H89: 1 | I89: 56 | J89: 55 | K89: 54 | L89: 43.07692308 | M89: 42.30769231 | N89: 41.53846154
B90: Triennale | C90: D.M. 270/04 | D90: INFORMATICA (D.M.270/04) - BRINDISI | E90: 55 | F90: 22 | G90: 0 | H90: 0 | I90: 33 | J90: 33 | K90: 33 | L90: 60 | M90: 60 | N90: 60
B91: Triennale | C91: D.M. 270/04 | D91: INFORMATICA E COMUNICAZIONE DIGITALE (D.M.270/04) | E91: 113 | F91: 60 | G91: 0 | H91: 3 | I91: 53 | J91: 53 | K91: 50 | L91: 46.90265487 | M91: 46.90265487 | N91: 44.24778761
B92: Triennale | C92: D.M. 270/04 | D92: INFORMATICA E TECNOLOGIE PER LA PRODUZIONE DEL SOFTWARE (D.M.270/04) | E92: 101 | F92: 61 | G92: 0 | H92: 0 | I92: 40 | J92: 40 | K92: 40 | L92: 39.6039604 | M92: 39.6039604 | N92: 39.6039604
B93: Triennale | C93: D.M. 270/04 | D93: MATEMATICA (D.M.270/04) | E93: 104 | F93: 50 | G93: 3 | H93: 3 | I93: 54 | J93: 51 | K93: 48 | L93: 51.92307692 | M93: 49.03846154 | N93: 46.15384615
B94: Triennale | C94: D.M. 270/04 | D94: SCIENZA DEI MATERIALI (D.M.270/04) | E94: 53 | F94: 31 | G94: 0 | H94: 4 | I94: 22 | J94: 22 | K94: 18 | L94: 41.50943396 | M94: 41.50943396 | N94: 33.96226415
B95: Triennale | C95: D.M. 270/04 | D95: SCIENZE BIOLOGICHE (D.M.270/04) | E95: 218 | F95: 131 | G95: 1 | H95: 20 | I95: 87 | J95: 86 | K95: 66 | L95: 39.90825688 | M95: 39.44954128 | N95: 30.27522936
B96: Triennale | C96: D.M. 270/04 | D96: SCIENZE DELLA NATURA (D.M.270/04) | E96: 79 | F96: 25 | G96: 0 | H96: 7 | I96: 54 | J96: 54 | K96: 47 | L96: 68.35443038 | M96: 68.35443038 | N96: 59.49367089
B97: Triennale | C97: D.M. 270/04 | D97: SCIENZE E TECNOLOGIE PER I BENI CULTURALI (D.M.270/04) | E97: 16 | F97: 12 | G97: 0 | H97: 1 | I97: 4 | J97: 4 | K97: 3 | L97: 25 | M97: 25 | N97: 18.75
B98: Triennale | C98: D.M. 270/04 | D98: SCIENZE GEOLOGICHE (D.M.270/04) | E98: 55 | F98: 32 | G98: 1 | H98: 0 | I98: 23 | J98: 22 | K98: 22 | L98: 41.81818182 | M98: 40 | N98: 40
D99: TOTALE SCIENZE MM.FF.NN. | E99: =SUM(E87:E98) -> 1163 | F99: =SUM(F87:F98) -> 605 | G99: 8 | H99: 44 | I99: 558 | J99: 550 | K99: 506 | L99: 47.97936371 | M99: 47.29148753 | N99: 43.50816853
B101: SCIENZE POLITICHE
B102: Triennale | C102: D.M. 270/04 | D102: SCIENZE DEL SERVIZIO SOCIALE (D.M.270/04) | E102: 411 | F102: 261 | G102: 2 | H102: 6 | I102: =E102-F102 -> 150 | J102: =I102-G102 -> 148 | K102: 142 | L102: =I102/$E102*100 -> 36.49635036 | M102: 36.00973236 | N102: 34.54987835
B103: Triennale | C103: D.M. 270/04 | D103: SCIENZE DELLA AMMINISTRAZIONE PUBBLICA E PRIVATA (D.M.270/04) | E103: 202 | F103: 99 | G103: 0 | H103: 0 | I103: 103 | J103: 103 | K103: 103 | L103: 50.99009901 | M103: 50.99009901 | N103: 50.99009901
B104: Triennale | C104: D.M. 270/04 | D104: SCIENZE POLITICHE RELAZIONI INTERNAZIONALI E STUDI EUROPEI (D.M.270/04) | E104: 140 | F104: 66 | G104: 1 | H104: 1 | I104: 74 | J104: 73 | K104: 72 | L104: 52.85714286 | M104: 52.14285714 | N104: 51.42857143
D105: TOTALE SCIENZE POLITICHE | E105: =SUM(E102:E104) -> 753 | F105: =SUM(F102:F104) -> 426 | G105: 3 | H105: 7 | I105: 327 | J105: 324 | K105: 317 | L105: 43.42629482 | M105: 43.02788845 | N105: 42.09827357
B107: ECONOMIA TARANTO
B108: Triennale | C108: D.M. 270/04 | D108: ECONOMIA E AMMINISTRAZIONE DELLE AZIENDE (D.M.270/04) | E108: 334 | F108: 157 | G108: 0 | H108: 4 | I108: =E108-F108 -> 177 | J108: =I108-G108 -> 177 | K108: 173 | L108: =I108/$E108*100 -> 52.99401198 | M108: 52.99401198 | N108: 51.79640719
D109: TOTALE ECONOMIA - TARANTO | E109: =SUM(E108) -> 334 | F109: =SUM(F108) -> 157 | G109: 0 | H109: 4 | I109: 177 | J109: 177 | K109: 173 | L109: 52.99401198 | M109: 52.99401198 | N109: 51.79640719
B111: GIURISPRUDENZA TARANTO
B112: Triennale | C112: D.M. 270/04 | D112: OPERATORE DEI SERVIZI GIURIDICI (D.M.270/04) - TARANTO | E112: 105 | F112: 41 | G112: 1 | H112: 0 | I112: =E112-F112 -> 64 | J112: =I112-G112 -> 63 | K112: 63 | L112: =I112/$E112*100 -> 60.95238095 | M112: 60 | N112: 60
B113: Magistrale a ciclo unico | C113: D.M. 270/04 | D113: GIURISPRUDENZA (TARANTO) | E113: 326 | F113: 204 | G113: 3 | H113: 3 | I113: 122 | J113: 119 | K113: 116 | L113: 37.42331288 | M113: 36.50306748 | N113: 35.58282209
D114: TOTALE GIURISPRUDENZA - TARANTO | E114: =SUM(E112:E113) -> 431 | F114: =SUM(F112:F113) -> 245 | G114: 4 | H114: 3 | I114: 186 | J114: 182 | K114: 179 | L114: 43.15545244 | M114: 42.22737819 | N114: 41.53132251
B116: SCIENZE MM.FF.NN. TARANTO
B117: Triennale | C117: D.M. 270/04 | D117: INFORMATICA E COMUNICAZIONE DIGITALE (D.M.270/04) - TARANTO | E117: 89 | F117: 36 | G117: 0 | H117: 0 | I117: =E117-F117 -> 53 | J117: =I117-G117 -> 53 | K117: 53 | L117: =I117/$E117*100 -> 59.5505618 | M117: 59.5505618 | N117: 59.5505618
B118: Triennale | C118: D.M. 270/04 | D118: SCIENZE AMBIENTALI (D.M.270/04) | E118: 42 | F118: 15 | G118: 0 | H118: 1 | I118: 27 | J118: 27 | K118: 26 | L118: 64.28571429 | M118: 64.28571429 | N118: 61.9047619
B119: Triennale | C119: D.M. 270/04 | D119: SCIENZE E GESTIONE DELLE ATTIVITA' MARITTIME (D.M.270/04) | E119: 81 | F119: 73 | G119: 0 | H119: 0 | I119: 8 | J119: 8 | K119: 8 | L119: 9.87654321 | M119: 9.87654321 | N119: 9.87654321
D120: TOTALE SCIENZE MM. FF. NN. - TARANTO | E120: =SUM(E117:E119) -> 212 | F120: =SUM(F117:F119) -> 124 | G120: 0 | H120: 1 | I120: 88 | J120: 88 | K120: 87 | L120: 41.50943396 | M120: 41.50943396 | N120: 41.03773585
D122: TOTALE DI ATENEO | E122: =SUM(E120,E114,E109,E105,E99,E84,E75,E70,E65,E42,E37,E29,E22,E16,E8) -> 11632 | F122: 7530 | G122: 107 | H122: 214 | I122: =E122-F122 -> 4102 | J122: =I122-G122 -> 3995 | K122: =J122-H122 -> 3781 | L122: =I122/$E122*100 -> 35.2647868 | M122: 34.34491059 | N122: 32.50515818
B123: (*) Il numero degli immatricolati estratto dal Centro Servizi Informatici riguarda gli studenti che si sono iscritti per la prima volta ad un corso di studio di Uniba. Non comprende coloro che negli anni precedenti sono stati iscritti ad altri corsi dell'ateneo, ma comprende coloro che negli anni precedenti sono stati iscritti ad altri atenei.
B124: Progetto di Ateneo "Sostegno studenti fuori corso e iscritti al II anno inattivi" - Processo: Analisi statistica dei dati sugli iscritti al II anno inattivi. Elaborazioni a cura del Gruppo statistico - Macro Area Controllo strategico, Analisi statistica e Programmazione
